bitfinex/quotes_ETHUSD_20241130
["timestamp","ask_amount","ask_price","bid_price","bid_amount"]
[1732979775857,28.19027412,3669.7,3669.6,10.03600515]
[1732979776383,24.10274412,3669.7,3669.6,10.03600515]
[1732979776696,21.37772412,3669.7,3669.6,10.03600515]
[1732979777245,22.48772412,3669.7,3669.6,9.48600515]
[1732979777746,15.67517412,3669.7,3669.6,9.48600515]
[1732979778393,14.31266412,3669.7,3669.6,9.48600515]
[1732979778685,8.86262412,3669.7,3669.6,10.03600515]
[1732979778843,9.97262412,3669.7,3669.6,10.35550025]
[1732979779045,9.97262412,3669.7,3669.6,10.89730965]
[1732979779247,8.61022412,3669.7,3669.6,10.89730965]
[1732979779448,4.52302412,3669.7,3669.6,10.89730965]
[1732979779711,3.16062412,3669.7,3669.6,10.89730965]
[1732979779997,3.16062412,3669.7,3669.6,10.99730965]
[1732979780219,3.16062412,3669.7,3669.6,10.89730965]
[1732979780350,4.27062412,3669.7,3669.6,10.89730965]
[1732979780551,4.27062412,3669.7,3669.6,10.35550025]
[1732979780779,4.27062412,3669.7,3669.6,10.03600515]
[1732979781087,4.27062412,3669.7,3669.6,5.43870515]
[1732979782052,5.38062412,3669.7,3669.6,5.43870515]
[1732979782452,5.38062412,3669.7,3669.6,3.35257041]
[1732979782673,7.79722383,3669.7,3669.6,2.80257041]
[1732979783307,6.97172412,3669.7,3669.6,2.80257041]
[1732979783648,6.49062412,3669.7,3669.6,2.80257041]
[1732979784051,6.49062412,3669.7,3669.6,5.80257041]
[1732979784765,6.49062412,3669.7,3669.6,6.07477041]
[1732979785355,7.60062412,3669.7,3669.6,6.07477041]
[1732979786591,7.60062412,3669.7,3669.6,0.34968041]
[1732979786761,11.10989653,3669.7,3669.6,0.34968041]
[1732979786966,12.21989653,3669.7,3669.6,0.34968041]
[1732979787192,12.21989653,3669.7,3669.6,0.2722]
[1732979787953,12.21989653,3669.7,3669.6,0.3500449]
[1732979788700,13.32989653,3669.7,3669.6,0.3500449]
[1732979788906,1.5911,3669.6,3669.0,3.0]
[1732979789182,1.5911,3669.4,3669.1,3.07440505]
[1732979789361,1.5911,3669.4,3669.1,0.07440505]
[1732979789562,1.5911,3669.4,3668.9,0.2722]
[1732979789855,2.08613474,3669.3,3668.5,2.72584]
[1732979790192,1.5911,3669.2,3668.6,2.80129411]
[1732979790391,1.5911,3669.1,3668.6,2.80129411]
[1732979790603,1.5911,3669.1,3668.6,5.52707411]
[1732979790747,1.5911,3669.1,3668.6,2.80128411]
[1732979791655,1.5911,3668.8,3668.6,0.07550411]
[1732979791879,1.95882347,3668.7,3668.6,0.07550411]
[1732979792078,1.95882347,3668.7,3668.3,2.72604]
[1732979792294,1.5911,3668.7,3668.6,0.07596195]
[1732979792491,1.5911,3668.7,3668.1,5.45228]
[1732979792793,1.5911,3668.7,3668.1,2.72613]
[1732979792993,1.5911,3668.7,3668.2,3.07494195]
[1732979793659,2.7011,3668.7,3668.2,3.07494195]
[1732979793995,2.7011,3668.7,3668.2,0.07494195]
[1732979793996,1.5911,3668.4,3668.2,0.07494195]
[1732979794355,1.5911,3668.4,3667.8,2.72639]
[1732979794592,1.5911,3668.4,3667.9,0.07638885]
[1732979795420,1.11,3668.4,3667.9,0.07638885]
[1732979795594,1.96141347,3668.3,3667.9,0.07638885]
[1732979795783,1.96141347,3668.3,3667.9,2.72629]
[1732979796101,1.96141347,3668.3,3668.0,0.07561207]
[1732979796496,1.96141347,3668.3,3668.0,2.80188207]
[1732979796703,1.96141347,3668.3,3668.0,0.07561207]
[1732979796990,1.96141347,3668.3,3667.9,2.7263]
[1732979797311,3.07141347,3668.3,3668.1,0.07633567]
[1732979797493,1.6418,3668.1,3668.0,0.07598274]
[1732979797682,1.6418,3668.1,3667.4,2.72667]
[1732979797683,3.72793474,3668.1,3667.4,2.72667]
[1732979797881,3.72793474,3668.1,3667.5,3.0]
[1732979798084,1.6418,3668.0,3667.5,3.0]
[1732979798385,1.6418,3668.0,3667.3,5.72679]
[1732979798585,1.6418,3668.0,3667.6,3.0]
[1732979798848,2.7518,3668.0,3667.8,2.72642]
[1732979799234,2.7518,3668.0,3667.6,5.72653]
[1732979799534,2.7518,3668.0,3667.6,3.0]
[1732979799835,1.6418,3667.6,3667.4,3.0]
[1732979800030,1.6418,3667.6,3666.1,0.38493648]
[1732979800031,1.6418,3667.6,3666.1,1.5435]
[1732979800186,2.08613474,3666.8,3666.1,5.45525]
[1732979800382,1.6418,3666.3,3665.5,2.72813]
[1732979800723,1.6418,3666.3,3665.8,2.72789]
[1732979800885,1.6418,3666.3,3665.8,2.72785]
[1732979801295,1.6418,3666.3,3665.9,0.07247726]
[1732979801504,3.72793474,3666.0,3665.9,0.07247726]
[1732979801780,1.6418,3665.9,3665.2,2.72829]
[1732979802092,1.6418,3665.9,3665.1,2.7284]
[1732979802093,1.6418,3667.1,3665.6,3.00026]
[1732979802298,1.6418,3667.5,3667.0,2.72702]
[1732979802660,9.79,3668.3,3667.0,2.72702]
[1732979802661,1.11,3668.3,3667.5,2.72665]
[1732979802802,1.6418,3667.8,3667.5,5.72665]
[1732979803147,1.6418,3667.8,3667.5,6.08540247]
[1732979803999,2.22,3667.6,3667.5,6.08540247]
[1732979804193,2.22,3667.6,3667.5,5.72665]
[1732979805803,3.33,3667.6,3667.5,5.72665]
[1732979807515,4.44,3667.6,3667.5,5.72665]
[1732979809106,5.55,3667.6,3667.5,5.72665]
[1732979810802,6.66,3667.6,3667.5,5.72665]
[1732979812450,7.77,3667.6,3667.5,5.72665]
[1732979814209,8.88,3667.6,3667.5,5.72665]
[1732979816017,9.99,3667.6,3667.5,5.72665]
[1732979816214,9.99,3667.6,3667.5,5.79790231]
[1732979816839,9.99,3667.6,3667.5,7.41860231]
[1732979817040,8.62671,3667.6,3667.5,7.41860231]
[1732979817653,9.73671,3667.6,3667.5,7.41860231]
[1732979819243,10.84671,3667.6,3667.5,7.41860231]
[1732979820127,5.39355,3667.6,3667.5,7.69080231]
[1732979820331,2.66697,3667.6,3667.5,7.69080231]
[1732979820757,1e-05,3668.3,3668.0,1.6207]
[1732979820974,1e-05,3668.3,3668.2,8.46402214]
[1732979821187,1e-05,3668.3,3668.2,9.01402214]
[1732979821329,1e-05,3668.3,3668.2,8.53501875]
[1732979822225,1.11,3668.7,3668.6,2.72583]
[1732979822408,1e-05,3668.8,3668.7,10.08435214]
[1732979822679,1e-05,3668.8,3668.7,10.1551069]
[1732979824327,1e-05,3668.8,3668.7,7.68941476]
[1732979825684,1e-05,3669.3,3669.2,5.72538]
[1732979825841,1e-05,3669.3,3669.2,8.19107214]
[1732979826041,1e-05,3669.3,3669.2,8.26144205]
[1732979826833,1e-05,3669.3,3669.2,7.87925243]
[1732979827536,1.11001,3669.3,3669.2,7.87925243]
[1732979829038,1.11001,3669.3,3669.2,5.79574991]
[1732979829349,2.487041,3669.3,3669.2,5.79574991]
[1732979830334,2.22001,3669.3,3669.2,7.87925243]
[1732979830943,3.33001,3669.3,3669.2,7.87925243]
[1732979832278,0.60469,3669.3,3669.2,7.87925243]
[1732979832484,11.5503,3670.0,3669.6,2.72509]
[1732979832712,11.5503,3670.0,3669.6,7.80859252]
[1732979832869,11.5503,3670.0,3669.6,5.79491788]
[1732979834262,10.93062412,3669.7,3669.6,5.79491788]
[1732979834763,10.93062412,3669.7,3669.6,6.06711788]
[1732979834967,14.78431653,3669.7,3669.6,5.79491788]
[1732979835307,14.78431653,3669.7,3669.6,0.06982788]
[1732979835660,14.78431653,3669.7,3669.0,2.72552]
[1732979835661,1.6056,3669.6,3669.2,2.72538]
[1732979835906,1.6056,3669.6,3669.4,2.72523]
[1732979836107,1.6056,3669.6,3668.7,2.72575]
[1732979836108,1.58943165,3669.5,3669.3,2.72531]
[1732979836295,1.58943165,3669.5,3669.4,2.72524]
[1732979836908,1.58943165,3669.5,3669.3,2.72529]
[1732979837104,1.58943165,3669.5,3669.1,3.0]
[1732979837311,1.6056,3669.6,3668.5,5.18779795]
[1732979837605,1.6056,3669.4,3668.9,2.72554]
[1732979837757,1.6056,3669.4,3669.0,3.06330728]
[1732979838074,1.6056,3669.4,3669.1,2.7254]
[1732979838277,1.6056,3669.4,3669.0,3.06330728]
[1732979838480,1.87716,3669.3,3669.2,0.06323036]
[1732979838696,1.87716,3669.3,3669.1,0.06328452]
[1732979838970,2.98716,3669.3,3668.9,2.7256]
[1732979839172,2.98716,3669.3,3669.1,2.7254]
[1732979839369,2.98716,3669.3,3669.2,2.78841694]
[1732979840814,4.09716,3669.3,3669.2,2.78841694]
[1732979841612,3.8256,3669.3,3669.2,2.78841694]
[1732979841822,2.22,3669.3,3669.2,2.78841694]
[1732979842003,2.22,3669.3,3669.2,5.78841694]
[1732979842517,3.33,3669.3,3669.2,5.78841694]
[1732979843980,1.11,3669.5,3669.4,5.72524]
[1732979844105,1.11,3669.5,3669.4,8.18716795]
[1732979844303,1.11,3669.5,3669.4,8.25022678]
[1732979844837,1.11,3669.5,3669.4,8.52242678]
[1732979845820,2.22,3669.5,3669.4,8.52242678]
[1732979847419,0.60484,3669.5,3669.4,8.52242678]
[1732979848640,0.57054,3669.5,3669.4,8.52242678]
[1732979848934,0.57054,3669.5,3669.4,9.61208678]
[1732979849135,1.68054,3669.5,3669.4,9.61208678]
[1732979849945,1.68054,3669.5,3669.4,6.06049883]
[1732979850737,2.79054,3669.5,3669.4,8.52242678]
[1732979850891,2.79054,3669.5,3669.4,10.11372678]
[1732979852472,3.90054,3669.5,3669.4,10.11372678]
[1732979854146,5.01054,3669.5,3669.4,10.11372678]
[1732979854969,5.01054,3669.5,3669.4,9.73539994]
[1732979855774,6.12054,3669.5,3669.4,9.73539994]
[1732979856073,6.12054,3669.5,3669.4,8.14409994]
[1732979856298,6.12054,3669.5,3669.4,6.06049883]
[1732979857076,8.98086185,3669.5,3669.4,0.06305883]
[1732979857293,8.98086185,3669.5,3669.4,2.78829883]
[1732979857450,10.09086185,3669.5,3669.4,2.72524]
[1732979857843,8.81094,3669.5,3669.4,2.72524]
[1732979858360,8.81094,3669.5,3669.4,2.78386872]
[1732979858662,8.81094,3669.5,3669.4,5.78386872]
[1732979858880,8.81094,3669.5,3669.4,6.05606872]
[1732979859196,9.92094,3669.5,3669.4,6.05606872]
[1732979859555,8.34054,3669.5,3669.4,6.05606872]
[1732979860644,8.34054,3669.5,3669.4,8.13966983]
[1732979860645,9.45054,3669.5,3669.4,8.13966983]
[1732979861413,8.08796,3669.5,3669.4,8.13966983]
[1732979861688,4.00022,3669.5,3669.4,8.13966983]
[1732979862187,2.63764,3669.5,3669.4,8.13966983]
[1732979862406,1.02248,3669.5,3669.4,8.13966983]
[1732979863954,12.04062412,3669.7,3669.6,5.99729]
[1732979864399,12.04062412,3669.7,3669.6,6.05576911]
[1732979865552,13.15062412,3669.7,3669.6,6.05576911]
[1732979866575,6.33807412,3669.7,3669.6,6.60576911]
[1732979866772,6.33807412,3669.7,3669.6,8.16096911]
[1732979867406,4.72305412,3669.7,3669.6,8.16096911]
[1732979867573,4.72305412,3669.7,3669.6,7.61096911]
[1732979868701,4.72305412,3669.7,3669.6,6.05576911]
[1732979868908,5.83305412,3669.7,3669.6,6.05576911]
[1732979870662,6.94305412,3669.7,3669.6,6.05576911]
[1732979872567,8.05305412,3669.7,3669.6,6.05576911]
[1732979873090,8.05305412,3669.7,3669.6,7.61096911]
[1732979873607,3.96552412,3669.7,3669.6,7.61096911]
[1732979873907,1.24050412,3669.7,3669.6,8.16096911]
[1732979874065,2.35050412,3669.7,3669.6,8.16096911]
[1732979874279,0.98810412,3669.7,3669.6,8.16096911]
[1732979874600,8.25330412,3670.0,3669.8,0.2722]
[1732979874801,5.52850412,3670.0,3669.9,8.63066111]
[1732979875003,5.52850412,3670.0,3669.9,8.68853935]
[1732979875908,6.63850412,3670.0,3669.9,8.68853935]
[1732979877521,7.74850412,3670.0,3669.9,8.13853935]
[1732979877730,7.74850412,3670.0,3669.9,6.05493824]
[1732979878722,11.07091453,3670.0,3669.9,0.05787824]
[1732979879106,1.6096,3669.9,3669.8,2.72494]
[1732979880120,1.6096,3669.9,3669.8,5.72494]
[1732979880524,1.6096,3669.9,3669.8,5.78266245]
[1732979880697,2.7196,3669.9,3669.8,5.78266245]
[1732979882534,4.11408982,3669.9,3669.8,5.78266245]
[1732979884113,3.61448982,3669.9,3669.8,6.05486245]
[1732979884344,3.61448982,3669.9,3669.8,7.59696245]
[1732979885499,0.88965982,3669.9,3669.8,8.14696245]
[1732979885705,8.85850412,3670.0,3669.9,8.63066111]
[1732979885706,6.77096394,3670.0,3669.9,8.63066111]
[1732979886014,6.77096394,3670.0,3669.9,8.68849807]
[1732979886399,6.77096394,3670.0,3669.9,6.05489696]
[1732979887236,7.88096394,3670.0,3669.9,6.05489696]
[1732979888495,7.88096394,3670.0,3669.9,8.13849807]
[1732979888698,7.88096394,3670.0,3669.9,6.05489696]
[1732979888914,8.99096394,3670.0,3669.9,6.05489696]
[1732979890556,10.10096394,3670.0,3669.9,6.05489696]
[1732979891529,11.71056394,3670.0,3669.9,6.05489696]
[1732979892106,12.82056394,3670.0,3669.9,6.05489696]
[1732979893908,13.93056394,3670.0,3669.9,6.05489696]
[1732979895648,15.04056394,3670.0,3669.9,6.05489696]
[1732979895803,13.43096394,3670.0,3669.9,6.05489696]
[1732979897486,14.54096394,3670.0,3669.9,6.05489696]
[1732979899053,15.65096394,3670.0,3669.9,6.05489696]
[1732979900583,14.03616394,3670.0,3669.9,6.05489696]
[1732979901308,11.31136394,3670.0,3669.9,6.05489696]
[1732979902513,11.05896394,3670.0,3669.9,6.05489696]
[1732979904189,10.80656394,3670.0,3669.9,6.05489696]
[1732979904428,9.44416394,3670.0,3669.9,6.05489696]
[1732979905319,7.77,3670.0,3669.9,8.13849807]
[1732979905485,2.63295394,3670.0,3669.9,10.25909807]
[1732979905685,3.74295394,3670.0,3669.9,10.25909807]
[1732979906417,7.42602394,3670.2,3669.9,10.25909807]
[1732979906571,4.70138394,3670.2,3670.1,5.99692]
[1732979907078,4.70138394,3670.2,3670.1,6.05464306]
[1732979907384,3.94e-06,3670.2,3670.1,6.05464306]
[1732979908202,1e-05,3670.3,3670.1,6.05464306]
[1732979908402,1e-05,3670.3,3670.2,5.99684]
[1732979908828,1e-05,3670.3,3670.2,6.05449392]
[1732979909107,2.64281,3670.3,3670.2,6.05449392]
[1732979909313,1.11001,3670.3,3670.2,6.05449392]
[1732979910346,5.55,3670.4,3670.3,5.99677]
[1732979910551,6.66,3670.4,3670.3,5.99677]
[1732979910844,6.66,3670.4,3670.3,6.05433039]
[1732979911810,2.22,3670.4,3670.3,6.05433039]
[1732979912121,7.61453281,3670.5,3670.4,5.99669]
[1732979912340,2.16641281,3670.5,3670.4,5.99669]
[1732979912508,0.80435281,3670.5,3670.4,6.05420847]
[1732979913325,4.23579281,3670.7,3670.6,2.99655]
[1732979913540,2.87365281,3670.7,3670.6,5.99655]
[1732979913705,3.98365281,3670.7,3670.6,6.05391896]
[1732979915063,0.50325281,3670.9,3670.8,4.5893]
[1732979915211,1.36130281,3671.0,3670.8,9.67290111]
[1732979915412,2.81e-06,3671.2,3671.1,0.2722]
[1732979915612,2.81e-06,3671.2,3671.1,3.0234037]
[1732979915814,2.81e-06,3671.2,3671.1,6.60273536]
[1732979916052,2.81e-06,3671.2,3671.1,8.81782708]
[1732979916266,2.22,3672.2,3671.1,8.81782708]
[1732979916267,0.85842,3672.2,3671.4,1.8651]
[1732979916427,0.1564064,3672.4,3671.3,0.1]
[1732979916428,3.2800064,3672.8,3672.3,5.99528]
[1732979916750,3.2800064,3672.8,3672.7,5.99499]
[1732979917160,3.2800064,3672.8,3672.7,6.05063954]
[1732979919133,4.3900064,3672.8,3672.7,6.05063954]
[1732979919862,4.3900064,3672.8,3672.7,5.77843954]
[1732979920782,5.5000064,3672.8,3672.7,5.77843954]
[1732979921141,5.5000064,3672.8,3672.7,7.37133954]
[1732979922680,6.6100064,3672.8,3672.7,7.37133954]
[1732979924149,7.7200064,3672.8,3672.7,7.37133954]
[1732979925161,7.7200064,3672.8,3672.7,5.77843954]
[1732979925845,8.8300064,3672.8,3672.7,5.77843954]
[1732979927387,9.9400064,3672.8,3672.7,5.77843954]
[1732979929227,11.0500064,3672.8,3672.7,5.77843954]
[1732979930699,12.1600064,3672.8,3672.7,5.77843954]
[1732979932339,7.4266064,3672.9,3672.7,8.13543954]
[1732979932542,7.4266064,3672.9,3672.8,2.72271]
[1732979932855,7.4266064,3672.9,3672.8,6.32767405]
[1732979933713,7.4266064,3672.9,3672.8,5.77767405]
[1732979933914,8.5366064,3672.9,3672.8,2.77767405]
[1732979935603,9.6466064,3672.9,3672.8,5.77767405]
[1732979936303,9.6466064,3672.9,3672.8,7.35757405]
[1732979937543,9.6466064,3672.9,3672.8,5.77767405]
[1732979937718,10.7566064,3672.9,3672.8,5.77767405]
[1732979938506,12.3814064,3672.9,3672.8,5.77767405]
[1732979938707,13.61954704,3672.9,3672.8,5.77767405]
[1732979939359,13.4914064,3672.9,3672.8,5.77767405]
[1732979939554,11.8666064,3672.9,3672.8,5.77767405]
[1732979939849,11.8666064,3672.9,3672.8,6.04987405]
[1732979941143,12.9766064,3672.9,3672.8,6.04987405]
[1732979942757,14.0866064,3672.9,3672.8,6.04987405]
[1732979944354,15.1966064,3672.9,3672.8,6.04987405]
[1732979944724,16.8214064,3672.9,3672.8,6.04987405]
[1732979945023,17.68690115,3672.9,3672.8,6.04987405]
[1732979945228,16.8214064,3672.9,3672.8,6.04987405]
[1732979945870,9.7513264,3672.9,3672.8,6.04987405]
[1732979946070,9.5000064,3672.9,3672.8,6.04987405]
[1732979946240,5.4160464,3672.9,3672.8,6.04987405]
[1732979946443,2.6934064,3672.9,3672.8,6.04987405]
[1732979947274,0.5788464,3673.4,3673.3,1.5799]
[1732979947479,0.5788464,3673.4,3673.3,8.07814111]
[1732979947480,6.4e-06,3673.4,3673.3,8.07814111]
[1732979947789,1.1100064,3673.4,3673.3,9.71105138]
[1732979948250,6.4e-06,3673.4,3673.3,9.71105138]
[1732979948691,6.4e-06,3673.4,3673.3,10.06163145]
[1732979949349,6.4e-06,3673.4,3673.3,9.71105138]
[1732979949548,6.4e-06,3673.4,3673.3,7.62745027]
[1732979949763,6.4e-06,3673.4,3673.3,7.97803034]
[1732979950286,0.85916,3674.2,3674.1,2.72175]
[1732979950486,2.22,3675.1,3674.1,2.72175]
[1732979950487,2.22,3675.1,3674.6,2.99358]
[1732979950707,2.22,3675.1,3674.6,5.99358]
[1732979950995,2.22,3675.1,3674.6,6.04577845]
[1732979950996,2.22,3674.7,3674.6,6.04577845]
[1732979951359,2.22,3674.7,3674.6,6.39635852]
[1732979951552,2.22,3674.7,3674.6,8.47995963]
[1732979951914,2.22,3674.7,3674.6,8.12937956]
[1732979952044,2.22,3674.7,3674.6,6.04577845]
[1732979952689,3.33,3674.7,3674.6,6.04577845]
[1732979952865,4.8755,3674.7,3674.6,5.77357845]
[1732979953066,5.4255,3674.7,3674.6,5.77357845]
[1732979954306,6.5355,3674.7,3674.6,3.05219845]
[1732979954600,7.18905,3674.7,3674.6,0.05219845]
[1732979954803,7.18905,3674.7,3674.6,3.0]
[1732979955103,7.18905,3674.7,3674.6,5.77359343]
[1732979955462,7.18905,3674.7,3674.6,0.05221343]
[1732979955862,1.5247,3674.5,3674.3,2.72159]
[1732979956064,0.55,3674.4,3674.1,2.72174]
[1732979956267,0.827825,3674.5,3674.1,2.72174]
[1732979956268,0.55,3674.2,3674.1,2.72174]
[1732979956868,2.0747,3674.2,3674.1,5.72174]
[1732979957573,3.1847,3674.2,3674.1,5.72174]
[1732979957773,3.1847,3674.2,3674.0,3.0]
[1732979958090,3.1847,3674.2,3674.0,5.72181]
[1732979958294,1.5247,3674.1,3674.0,5.72181]
[1732979958504,1.5247,3674.1,3673.5,0.2722]
[1732979958505,0.55,3674.0,3673.6,3.0]
[1732979959004,0.55,3673.6,3672.8,0.2722]
[1732979959175,0.55,3673.5,3673.3,2.72229]
[1732979959505,0.55,3673.5,3672.8,0.2722]
[1732979959676,0.55,3673.5,3673.4,2.72227]
[1732979959878,2.0747,3673.5,3673.4,2.72227]
[1732979960065,2.0747,3673.5,3673.2,2.72242]
[1732979960265,2.0747,3673.5,3673.2,3.0]
[1732979960706,1.5247,3673.4,3673.2,3.0]
[1732979960906,1.5247,3673.2,3672.6,2.72285]
[1732979961114,0.55,3673.1,3672.9,2.72258]
[1732979961428,0.55,3673.1,3672.8,2.7227]
[1732979961709,0.55,3672.9,3672.4,2.72295]
[1732979961927,0.55,3672.9,3672.6,2.72284]
[1732979962124,1.5247,3672.8,3672.4,2.72295]
[1732979962335,0.75747,3672.9,3671.5,0.61202642]
[1732979962336,1.5247,3672.4,3671.5,0.61202642]
[1732979962473,1.5247,3672.4,3671.0,0.35058007]
[1732979962474,0.55,3672.3,3671.0,0.35058007]
[1732979962673,0.55,3672.3,3671.1,3.09704642]
[1732979962874,0.55,3672.3,3671.9,2.72331]
[1732979963093,0.55,3672.1,3671.7,2.72347]
[1732979963518,0.55,3672.1,3671.8,2.72342]
[1732979963816,0.55,3672.1,3671.9,2.72334]
[1732979964335,1.66,3672.1,3671.9,2.72334]
[1732979964474,1.66,3672.1,3672.0,3.0]
[1732979964879,1.66,3672.1,3671.8,2.72344]
[1732979965105,1.66,3672.1,3671.9,5.72338]
[1732979965919,2.77,3672.1,3671.9,5.72338]
[1732979966090,2.77,3672.1,3672.0,5.72331]
[1732979966297,2.77,3672.1,3672.0,5.77229067]
[1732979967378,3.88,3672.1,3672.0,5.77229067]
[1732979969007,4.44,3672.1,3672.0,5.77229067]
[1732979970613,5.55,3672.1,3672.0,5.77229067]
[1732979972463,6.66,3672.1,3672.0,5.77229067]
[1732979974354,7.77,3672.1,3672.0,7.39779067]
[1732979974820,7.77,3672.1,3672.0,7.66999067]
[1732979975836,2.0719,3672.1,3672.0,8.05390573]
[1732979976129,2.0719,3672.1,3672.0,8.42224202]
[1732979976529,1.11,3672.8,3672.7,2.99499]
[1732979976845,1.11,3672.8,3672.7,6.04287742]
[1732979977666,2.22,3672.8,3672.7,6.04287742]
[1732979978467,2.22,3672.8,3672.7,7.66227742]
[1732979979264,3.33,3672.8,3672.7,7.66227742]
[1732979980388,0.60728,3672.8,3672.7,9.74587853]
[1732979980556,1.66,3673.5,3673.4,5.72227]
[1732979980751,2.77,3673.5,3673.4,5.72227]
[1732979981084,2.77,3673.5,3673.4,5.76972111]
[1732979982445,3.88,3673.5,3673.4,5.76972111]
[1732979984188,4.99,3673.5,3673.4,5.76972111]
[1732979985993,6.1,3673.5,3673.4,5.76972111]
[1732979986279,8.35163,3673.5,3673.4,0.04745111]
[1732979986578,0.55,3673.4,3673.3,5.72228]
[1732979987590,1.66,3673.4,3673.3,5.72228]
[1732979989931,2.77,3673.4,3673.3,5.99448]
[1732979991356,1.5933,3673.3,3672.9,3.0]
[1732979991505,1.5933,3673.1,3672.9,2.72264]
[1732979991846,0.55,3673.0,3672.8,0.272]
[1732979992522,0.55,3673.0,3672.9,2.72264]
[1732979993156,0.55,3673.0,3672.9,5.72264]
[1732979993444,1.66,3673.0,3672.9,5.72264]
[1732979995014,2.77,3673.0,3672.9,5.72264]
[1732979995609,2.77,3673.0,3672.9,3.0]
[1732979995809,3.20633,3673.0,3672.9,3.0]
[1732979996010,3.20633,3673.0,3672.8,2.9947]
[1732979996211,3.20633,3673.0,3672.9,2.76938159]
[1732979996510,2.77,3673.0,3672.9,2.76938159]
[1732979996718,3.88,3673.0,3672.9,2.76938159]
[1732979997113,3.88,3673.0,3672.9,5.76938159]
[1732979998250,4.99,3673.0,3672.9,5.76938159]
[1732979999052,4.44,3673.0,3672.9,5.76938159]
[1732979999917,4.44,3673.0,3672.9,6.04138159]
[1732980000119,5.55,3673.0,3672.9,6.04138159]
[1732980001759,6.66,3673.0,3672.9,6.04138159]
[1732980001925,8.1997,3673.0,3672.9,6.04138159]
[1732980002135,9.56967,3673.0,3672.9,6.04138159]
[1732980003229,9.56967,3673.0,3672.9,0.04674159]
[1732980003465,1.5397,3672.8,3672.4,2.72298]
[1732980003626,1.5397,3672.8,3672.3,0.272]
[1732980003627,0.55,3672.7,3672.6,2.72286]
[1732980003960,0.55,3672.7,3672.6,2.76848269]
[1732980004765,0.55,3672.7,3672.6,5.76848269]
[1732980004949,1.66,3672.7,3672.6,5.76848269]
[1732980005948,2.75697,3672.7,3672.6,0.04562269]
[1732980006128,2.75697,3672.7,3672.0,2.72323]
[1732980006329,0.55,3672.5,3672.2,2.72312]
[1732980006529,0.55,3672.5,3672.3,0.04659084]
[1732980006765,1.090667,3672.4,3672.2,2.72312]
[1732980006973,1.090667,3672.4,3672.3,2.76949794]
[1732980007630,0.55,3672.5,3672.4,2.72301]
[1732980007829,0.55,3672.5,3672.4,5.76954678]
[1732980008225,1.66,3672.5,3672.4,5.76954678]
[1732980008431,1.66,3672.5,3672.4,3.04653678]
[1732980008678,1.66,3672.5,3672.4,2.76954678]
[1732980008830,1.66,3672.5,3672.4,0.04653678]
[1732980009034,3.74167,3672.5,3672.4,0.04653678]
[1732980009230,4.26286,3672.2,3670.3,4.37513]
[1732980009471,0.55,3671.8,3671.0,2.72399]
[1732980009627,2.0897,3671.8,3671.0,2.72399]
[1732980009827,2.0897,3671.8,3670.5,2.72438]
[1732980009828,2.78935711,3671.8,3671.5,2.72367]
[1732980010082,2.78935711,3671.8,3671.7,0.05583629]
[1732980010372,2.0897,3671.8,3671.7,0.01498136]
[1732980010578,2.0897,3671.8,3671.7,0.05500739]
[1732980011781,3.1997,3671.8,3671.7,0.05500739]
[1732980012466,5.92315,3671.8,3671.7,0.05500739]
[1732980012777,6.02315,3671.8,3671.7,0.01498136]
[1732980012982,4.10037511,3671.8,3671.7,0.01498136]
[1732980013162,7.93382511,3671.8,3671.7,0.01498136]
[1732980014780,9.04382511,3671.8,3671.7,0.01498136]
[1732980016273,6.32037511,3671.8,3671.7,0.01498136]
[1732980016477,10.15382511,3671.8,3671.7,0.01498136]
[1732980018203,11.26382511,3671.8,3671.7,0.01498136]
[1732980018598,8.54037511,3671.8,3671.7,0.01498136]
[1732980019504,0.1,3671.6,3671.4,0.06963355]
[1732980019671,0.55,3671.5,3671.4,0.06963355]
[1732980020076,0.55,3671.5,3671.0,2.72399]
[1732980020298,0.55,3671.5,3670.4,2.72443]
[1732980020299,0.55,3671.5,3671.4,0.0410172]
[1732980020502,0.55,3671.5,3671.3,2.72382]
[1732980020732,0.55,3671.5,3671.1,2.72395]
[1732980021105,0.55,3671.5,3671.2,0.04112539]
[1732980021306,0.55,3671.5,3671.4,2.72375]
[1732980021503,1.66,3671.5,3671.4,2.72375]
[1732980021842,1.66,3671.5,3671.4,2.76495836]
[1732980023112,2.77,3671.5,3671.4,2.76495836]
[1732980024951,3.88,3671.5,3671.4,2.76495836]
[1732980026601,4.99,3671.5,3671.4,2.76495836]
[1732980027038,4.99,3671.5,3671.4,0.04120836]
[1732980027220,4.99,3671.5,3671.4,2.72375]
[1732980027544,4.99,3671.5,3671.4,2.76353603]
[1732980028207,6.1,3671.5,3671.4,2.76353603]
[1732980029853,6.1,3671.5,3671.4,0.03978603]
[1732980030008,6.1,3671.5,3670.6,1.5723]
[1732980030009,8.63997,3671.5,3671.2,2.72388]
[1732980030210,8.63997,3671.5,3671.0,2.72405]
[1732980030211,1.5766,3671.4,3671.3,0.03977846]
[1732980030512,2.1266,3671.4,3671.0,2.724]
[1732980030839,1.5766,3670.9,3669.8,2.72488]
[1732980031014,1.5766,3670.9,3669.7,1.5884]
[1732980031015,0.55,3670.4,3670.3,2.72457]
[1732980031349,1.5766,3670.3,3670.1,2.72464]
[1732980031553,0.55,3670.2,3669.9,2.72483]
[1732980032061,0.55,3670.2,3669.7,2.72499]
[1732980032212,0.55,3670.2,3669.8,2.7249]
[1732980032413,0.55,3670.0,3669.5,2.72516]
[1732980032656,0.55,3669.8,3669.7,2.72501]
[1732980033303,0.55,3669.8,3669.3,2.72529]
[1732980033504,0.55,3669.6,3669.3,2.72529]
[1732980033710,0.55,3669.6,3668.3,0.25530172]
[1732980033711,0.55,3669.6,3668.4,1.5884]
[1732980033954,0.55,3669.6,3668.5,2.7259]
[1732980034249,0.55,3669.6,3668.4,1.5884]
[1732980034456,0.55,3669.6,3668.7,2.72576]
[1732980034614,0.55,3669.6,3669.3,2.72526]
[1732980035157,1.66,3669.6,3669.3,2.72526]
[1732980035458,1.66,3669.6,3669.5,2.72516]